[Event "Titled Tuesday Blitz May 9 Early 2023"]
[White "Shuvalov, Evgenij"]
[Black "Hasangatin, Ramil"]
[WhiteFideId "4187237"]
[BlackFideId "4122160"]
[WhiteElo "2080"]
[BlackElo "2279"]
[Result "0-1"]
[Round "05"]
[TimeControl "180+2"]
[Date "2023.05.09"]
[WhiteClock "0:00:12"]
[BlackClock "0:00:25"]

1. d4 {[%clk 0:03:00]}  d6 {[%clk 0:02:58]} 2. Nf3 {[%clk 0:03:00]}  Bg4 {[%clk 0:02:58]} 3. c4 {[%clk 0:02:58]}  Bxf3 {[%clk 0:02:58]} 4. exf3 {[%clk 0:02:59]}  c6 {[%clk 0:02:58]} 5. Nc3 {[%clk 0:02:59]}  g6 {[%clk 0:02:58]} 6. Be2 {[%clk 0:02:53]}  Bg7 {[%clk 0:02:59]} 7. O-O {[%clk 0:02:53]}  Nf6 {[%clk 0:03:00]} 8. Be3 {[%clk 0:02:49]}  d5 {[%clk 0:03:00]} 9. Qb3 {[%clk 0:02:34]}  Qb6 {[%clk 0:02:51]} 10. cxd5 {[%clk 0:02:30]}  Qxb3 {[%clk 0:02:49]} 11. axb3 {[%clk 0:02:31]}  Nxd5 {[%clk 0:02:50]} 12. Nxd5 {[%clk 0:02:31]}  cxd5 {[%clk 0:02:50]} 13. Rfc1 {[%clk 0:02:29]}  Nc6 {[%clk 0:02:49]} 14. Bb5 {[%clk 0:02:24]}  Kd7 {[%clk 0:02:46]} 15. Bxc6+ {[%clk 0:02:14]}  bxc6 {[%clk 0:02:46]} 16. Ra6 {[%clk 0:02:14]}  Rhc8 {[%clk 0:02:41]} 17. Rca1 {[%clk 0:02:13]}  Rc7 {[%clk 0:02:40]} 18. Kf1 {[%clk 0:02:06]}  Rb7 {[%clk 0:02:38]} 19. Ke2 {[%clk 0:02:04]}  Rxb3 {[%clk 0:02:27]} 20. Rxa7+ {[%clk 0:02:04]}  Rxa7 {[%clk 0:02:27]} 21. Rxa7+ {[%clk 0:02:05]}  Kd6 {[%clk 0:02:18]} 22. Ra2 {[%clk 0:01:42]}  e5 {[%clk 0:02:14]} 23. dxe5+ {[%clk 0:01:37]}  Bxe5 {[%clk 0:02:15]} 24. Ra7 {[%clk 0:01:29]}  Rxb2+ {[%clk 0:02:10]} 25. Kd1 {[%clk 0:01:29]}  d4 {[%clk 0:02:04]} 26. Bd2 {[%clk 0:01:13]}  f5 {[%clk 0:01:40]} 27. f4 {[%clk 0:01:09]}  Bf6 {[%clk 0:01:39]} 28. Kc1 {[%clk 0:00:56]}  Rb5 {[%clk 0:01:34]} 29. Rxh7 {[%clk 0:00:52]}  c5 {[%clk 0:01:31]} 30. Rh6 {[%clk 0:00:52]}  c4 {[%clk 0:01:21]} 31. Rxg6 {[%clk 0:00:52]}  Ke6 {[%clk 0:01:21]} 32. f3 {[%clk 0:00:45]}  Kf7 {[%clk 0:01:17]} 33. Rh6 {[%clk 0:00:43]}  Kg7 {[%clk 0:01:17]} 34. Rh5 {[%clk 0:00:41]}  c3 {[%clk 0:01:09]} 35. Bxc3 {[%clk 0:00:41]}  dxc3 {[%clk 0:01:09]} 36. g4 {[%clk 0:00:40]}  Kg6 {[%clk 0:00:55]} 37. h4 {[%clk 0:00:26]}  Rd5 {[%clk 0:00:44]} 38. Kc2 {[%clk 0:00:19]}  Rd2+ {[%clk 0:00:38]} 39. Kc1 {[%clk 0:00:18]}  Be7 {[%clk 0:00:38]} 40. Rxf5 {[%clk 0:00:12]}  Ba3+ {[%clk 0:00:37]} 41. Kb1 {[%clk 0:00:12]}  c2+ {[%clk 0:00:37]} 42. Ka2 {[%clk 0:00:13]}  c1=Q+ {[%clk 0:00:37]} 43. Kb3 {[%clk 0:00:14]}  Qc2+ {[%clk 0:00:27]} 44. Kxa3 {[%clk 0:00:12]}  Rd3+ {[%clk 0:00:25]} 45. Kb4 {[%clk 0:00:12]}  Rb3+ {[%clk 0:00:25]} 46. Ka4 {[%clk 0:00:12]}  Qa2# {[%clk 0:00:25]} 0-1


[Site "https://www.chess.com"]

[Event "Titled Tuesday Blitz May 9 Early 2023"]
[White "Schmakel, Sam"]
[Black "Bayasgalan, Khishigbaatar"]
[WhiteFideId "2039311"]
[BlackFideId "4904311"]
[WhiteElo "2356"]
[BlackElo "2057"]
[Result "1-0"]
[Round "05"]
[TimeControl "180+2"]
[Date "2023.05.09"]
[WhiteClock "0:00:04"]
[BlackClock "0:00:02"]

1. d4 {[%clk 0:03:00]}  Nf6 {[%clk 0:02:41]} 2. c4 {[%clk 0:02:59]}  e6 {[%clk 0:02:42]} 3. Nf3 {[%clk 0:02:59]}  d5 {[%clk 0:02:42]} 4. Nc3 {[%clk 0:03:00]}  c6 {[%clk 0:02:43]} 5. g3 {[%clk 0:02:52]}  Be7 {[%clk 0:02:39]} 6. Bg2 {[%clk 0:02:52]}  O-O {[%clk 0:02:40]} 7. O-O {[%clk 0:02:50]}  Nbd7 {[%clk 0:02:40]} 8. b3 {[%clk 0:02:40]}  a6 {[%clk 0:02:10]} 9. Qd3 {[%clk 0:02:34]}  b5 {[%clk 0:02:01]} 10. e4 {[%clk 0:02:33]}  Bb7 {[%clk 0:01:54]} 11. e5 {[%clk 0:02:24]}  Ne8 {[%clk 0:01:54]} 12. cxd5 {[%clk 0:02:14]}  cxd5 {[%clk 0:01:53]} 13. h4 {[%clk 0:02:13]}  b4 {[%clk 0:01:50]} 14. Ne2 {[%clk 0:02:13]}  a5 {[%clk 0:01:51]} 15. Ng5 {[%clk 0:02:01]}  Bxg5 {[%clk 0:01:46]} 16. Bxg5 {[%clk 0:02:02]}  f6 {[%clk 0:01:37]} 17. exf6 {[%clk 0:01:59]}  Nexf6 {[%clk 0:01:38]} 18. Nf4 {[%clk 0:01:36]}  Ba6 {[%clk 0:01:01]} 19. Qe3 {[%clk 0:01:36]}  Bxf1 {[%clk 0:01:00]} 20. Nxe6 {[%clk 0:01:02]}  Re8 {[%clk 0:00:28]} 21. Rxf1 {[%clk 0:00:41]}  Qb6 {[%clk 0:00:22]} 22. Re1 {[%clk 0:00:36]}  Qd6 {[%clk 0:00:17]} 23. f4 {[%clk 0:00:20]}  h6 {[%clk 0:00:15]} 24. Bxf6 {[%clk 0:00:19]}  Nxf6 {[%clk 0:00:15]} 25. f5 {[%clk 0:00:19]}  Re7 {[%clk 0:00:14]} 26. Qe5 {[%clk 0:00:18]}  Qd7 {[%clk 0:00:11]} 27. Rc1 {[%clk 0:00:15]}  Rc8 {[%clk 0:00:11]} 28. Rxc8+ {[%clk 0:00:16]}  Qxc8 {[%clk 0:00:11]} 29. Bxd5 {[%clk 0:00:16]}  Nxd5 {[%clk 0:00:11]} 30. Qxd5 {[%clk 0:00:17]}  Qd7 {[%clk 0:00:11]} 31. Qe5 {[%clk 0:00:13]}  Rf7 {[%clk 0:00:06]} 32. d5 {[%clk 0:00:09]}  Rf6 {[%clk 0:00:06]} 33. g4 {[%clk 0:00:06]}  Qc8 {[%clk 0:00:05]} 34. d6 {[%clk 0:00:04]}  Qc1+ {[%clk 0:00:05]} 35. Kf2 {[%clk 0:00:04]}  Qc2+ {[%clk 0:00:06]} 36. Kf3 {[%clk 0:00:05]}  Qd3+ {[%clk 0:00:06]} 37. Kf4 {[%clk 0:00:04]}  Qd2+ {[%clk 0:00:06]} 38. Ke4 {[%clk 0:00:04]}  Qe2+ {[%clk 0:00:06]} 39. Kd5 {[%clk 0:00:04]}  Qb5+ {[%clk 0:00:06]} 40. Kd4 {[%clk 0:00:04]}  Qb6+ {[%clk 0:00:06]} 41. Qc5 {[%clk 0:00:05]}  Qa6 {[%clk 0:00:04]} 42. d7 {[%clk 0:00:03]}  Rf8 {[%clk 0:00:03]} 43. Qxf8+ {[%clk 0:00:03]}  Kh7 {[%clk 0:00:02]} 44. Qxg7# {[%clk 0:00:04]} 1-0


[Site "https://www.chess.com"]

[Event "Titled Tuesday Blitz May 9 Early 2023"]
[White "Zhu, Jiner"]
[Black "Fernandez Garcia, Gumersindo"]
[WhiteFideId "8608059"]
[BlackFideId "24516740"]
[WhiteElo "2384"]
[BlackElo "2093"]
[Result "1-0"]
[Round "05"]
[TimeControl "180+2"]
[Date "2023.05.09"]
[WhiteClock "0:00:08"]
[BlackClock "0:00:06"]

1. c4 {[%clk 0:03:00]}  e5 {[%clk 0:02:59]} 2. Nc3 {[%clk 0:03:00]}  Nf6 {[%clk 0:02:59]} 3. Nf3 {[%clk 0:02:59]}  e4 {[%clk 0:02:59]} 4. Ng5 {[%clk 0:02:48]}  b5 {[%clk 0:02:59]} 5. Ngxe4 {[%clk 0:02:44]}  Nxe4 {[%clk 0:02:57]} 6. Nxe4 {[%clk 0:02:45]}  bxc4 {[%clk 0:02:57]} 7. d4 {[%clk 0:02:40]}  cxd3 {[%clk 0:02:45]} 8. exd3 {[%clk 0:02:35]}  d5 {[%clk 0:02:39]} 9. Nc3 {[%clk 0:02:33]}  Be7 {[%clk 0:02:21]} 10. Be2 {[%clk 0:02:32]}  O-O {[%clk 0:02:20]} 11. d4 {[%clk 0:02:27]}  c6 {[%clk 0:01:52]} 12. O-O {[%clk 0:02:26]}  Bf5 {[%clk 0:01:52]} 13. Bf4 {[%clk 0:02:23]}  Nd7 {[%clk 0:01:52]} 14. Rc1 {[%clk 0:02:20]}  Bf6 {[%clk 0:01:52]} 15. Na4 {[%clk 0:02:15]}  Rc8 {[%clk 0:01:52]} 16. Ba6 {[%clk 0:02:10]}  Nb6 {[%clk 0:01:39]} 17. Bxc8 {[%clk 0:02:09]}  Qxc8 {[%clk 0:01:40]} 18. Re1 {[%clk 0:01:52]}  Qa6 {[%clk 0:01:34]} 19. Nxb6 {[%clk 0:01:50]}  Qxb6 {[%clk 0:01:35]} 20. Be5 {[%clk 0:01:48]}  Bg5 {[%clk 0:01:28]} 21. Rc3 {[%clk 0:01:24]}  Qxb2 {[%clk 0:01:19]} 22. Rxc6 {[%clk 0:01:21]}  Qxa2 {[%clk 0:01:15]} 23. h4 {[%clk 0:01:19]}  Bxh4 {[%clk 0:01:07]} 24. g3 {[%clk 0:01:16]}  Bg5 {[%clk 0:01:03]} 25. Bd6 {[%clk 0:01:10]}  Rd8 {[%clk 0:01:00]} 26. Qh5 {[%clk 0:00:53]}  h6 {[%clk 0:00:56]} 27. Qe2 {[%clk 0:00:29]}  Qxe2 {[%clk 0:00:42]} 28. Rxe2 {[%clk 0:00:30]}  Bd3 {[%clk 0:00:42]} 29. Rb2 {[%clk 0:00:21]}  a6 {[%clk 0:00:42]} 30. Bc5 {[%clk 0:00:20]}  Bb5 {[%clk 0:00:42]} 31. Rc7 {[%clk 0:00:19]}  Bc1 {[%clk 0:00:39]} 32. Rb1 {[%clk 0:00:18]}  Bg5 {[%clk 0:00:38]} 33. Be7 {[%clk 0:00:18]}  Bxe7 {[%clk 0:00:36]} 34. Rxe7 {[%clk 0:00:19]}  Rc8 {[%clk 0:00:35]} 35. Re5 {[%clk 0:00:18]}  Bc4 {[%clk 0:00:35]} 36. Rb7 {[%clk 0:00:18]}  g6 {[%clk 0:00:30]} 37. Ree7 {[%clk 0:00:17]}  Rf8 {[%clk 0:00:31]} 38. Ra7 {[%clk 0:00:17]}  Kg7 {[%clk 0:00:31]} 39. Kg2 {[%clk 0:00:17]}  Kf6 {[%clk 0:00:31]} 40. Kf3 {[%clk 0:00:18]}  h5 {[%clk 0:00:31]} 41. Kf4 {[%clk 0:00:17]}  g5+ {[%clk 0:00:30]} 42. Kf3 {[%clk 0:00:17]}  Kg6 {[%clk 0:00:30]} 43. Rec7 {[%clk 0:00:16]}  f6 {[%clk 0:00:24]} 44. Rg7+ {[%clk 0:00:15]}  Kf5 {[%clk 0:00:24]} 45. Rh7 {[%clk 0:00:15]}  Re8 {[%clk 0:00:18]} 46. Rae7 {[%clk 0:00:14]}  Rxe7 {[%clk 0:00:15]} 47. Rxe7 {[%clk 0:00:15]}  Kg6 {[%clk 0:00:12]} 48. Ra7 {[%clk 0:00:15]}  Kf5 {[%clk 0:00:12]} 49. Rh7 {[%clk 0:00:15]}  Kg6 {[%clk 0:00:12]} 50. Rh8 {[%clk 0:00:15]}  Bd3 {[%clk 0:00:10]} 51. Rd8 {[%clk 0:00:13]}  Bc4 {[%clk 0:00:10]} 52. Ke3 {[%clk 0:00:13]}  Kf5 {[%clk 0:00:10]} 53. Rh8 {[%clk 0:00:12]}  Kg6 {[%clk 0:00:11]} 54. Kd2 {[%clk 0:00:12]}  f5 {[%clk 0:00:08]} 55. Ke3 {[%clk 0:00:11]}  Bb5 {[%clk 0:00:07]} 56. Rb8 {[%clk 0:00:11]}  Bc4 {[%clk 0:00:07]} 57. Rb6+ {[%clk 0:00:11]}  Kg7 {[%clk 0:00:08]} 58. f4 {[%clk 0:00:11]}  g4 {[%clk 0:00:08]} 59. Kd2 {[%clk 0:00:09]}  Bb5 {[%clk 0:00:02]} 60. Rd6 {[%clk 0:00:08]}  Bc4 {[%clk 0:00:03]} 61. Ke3 {[%clk 0:00:08]}  Bb3 {[%clk 0:00:02]} 62. Rxa6 {[%clk 0:00:07]}  Bc4 {[%clk 0:00:03]} 63. Rd6 {[%clk 0:00:07]}  Bb3 {[%clk 0:00:02]} 64. Rb6 {[%clk 0:00:08]}  Bc4 {[%clk 0:00:03]} 65. Kd2 {[%clk 0:00:08]}  Bf1 {[%clk 0:00:02]} 66. Ke1 {[%clk 0:00:08]}  Bg2 {[%clk 0:00:03]} 67. Kf2 {[%clk 0:00:07]}  Be4 {[%clk 0:00:03]} 68. Ke3 {[%clk 0:00:07]}  Kh7 {[%clk 0:00:04]} 69. Rd6 {[%clk 0:00:07]}  Kg7 {[%clk 0:00:05]} 70. Ra6 {[%clk 0:00:06]}  Kh7 {[%clk 0:00:06]} 71. Kd2 {[%clk 0:00:06]}  Kg7 {[%clk 0:00:06]} 72. Kc3 {[%clk 0:00:06]}  Kh7 {[%clk 0:00:07]} 73. Kb4 {[%clk 0:00:06]}  h4 {[%clk 0:00:07]} 74. gxh4 {[%clk 0:00:06]}  g3 {[%clk 0:00:07]} 75. h5 {[%clk 0:00:06]}  g2 {[%clk 0:00:07]} 76. Rg6 {[%clk 0:00:06]}  Bf3 {[%clk 0:00:07]} 77. Rg3 {[%clk 0:00:06]}  Bxh5 {[%clk 0:00:07]} 78. Rxg2 {[%clk 0:00:06]}  Bf3 {[%clk 0:00:07]} 79. Rg5 {[%clk 0:00:06]}  Be4 {[%clk 0:00:07]} 80. Kc5 {[%clk 0:00:07]}  Kh6 {[%clk 0:00:08]} 81. Kd6 {[%clk 0:00:07]}  Kh7 {[%clk 0:00:08]} 82. Ke5 {[%clk 0:00:08]}  Kh6 {[%clk 0:00:06]} 83. Rxf5 {[%clk 0:00:08]} 1-0


[Site "https://www.chess.com"]

[Event "Titled Tuesday Blitz May 9 Early 2023"]
[White "Kohler, Aran"]
[Black "Leiva, Gianmarco"]
[WhiteFideId "1002856"]
[BlackFideId "3804399"]
[WhiteElo "2360"]
[BlackElo "2365"]
[Result "1-0"]
[Round "05"]
[TimeControl "180+2"]
[Date "2023.05.09"]
[WhiteClock "0:02:27"]
[BlackClock "0:01:33"]

1. d4 {[%clk 0:03:00]}  Nf6 {[%clk 0:02:56]} 2. c3 {[%clk 0:03:00]}  g6 {[%clk 0:02:53]} 3. Bg5 {[%clk 0:03:01]}  Bg7 {[%clk 0:02:51]} 4. Nd2 {[%clk 0:03:01]}  O-O {[%clk 0:02:50]} 5. e3 {[%clk 0:03:01]}  d6 {[%clk 0:02:50]} 6. Ngf3 {[%clk 0:02:59]}  Qe8 {[%clk 0:02:48]} 7. h4 {[%clk 0:02:54]}  e5 {[%clk 0:02:42]} 8. dxe5 {[%clk 0:02:47]}  dxe5 {[%clk 0:02:42]} 9. Bxf6 {[%clk 0:02:45]}  Bxf6 {[%clk 0:02:42]} 10. h5 {[%clk 0:02:46]}  e4 {[%clk 0:02:37]} 11. Nd4 {[%clk 0:02:42]}  b6 {[%clk 0:02:21]} 12. hxg6 {[%clk 0:02:40]}  hxg6 {[%clk 0:02:20]} 13. Bc4 {[%clk 0:02:31]}  Bb7 {[%clk 0:01:36]} 14. Qg4 {[%clk 0:02:29]}  Kg7 {[%clk 0:01:36]} 15. Nf5+ {[%clk 0:02:28]}  Kg8 {[%clk 0:01:33]} 16. Qxg6+ {[%clk 0:02:27]} 1-0


[Site "https://www.chess.com"]

[Event "Titled Tuesday Blitz May 9 Early 2023"]
[White "Lavrik, Dmitry"]
[Black "Orzech, Dominik"]
[WhiteFideId "24113190"]
[BlackFideId "1115065"]
[WhiteElo "2345"]
[BlackElo "2260"]
[Result "1-0"]
[Round "05"]
[TimeControl "180+2"]
[Date "2023.05.09"]
[WhiteClock "0:01:26"]
[BlackClock "0:00:03"]

1. c4 {[%clk 0:03:00]}  Nf6 {[%clk 0:02:58]} 2. Nf3 {[%clk 0:03:00]}  g6 {[%clk 0:02:53]} 3. Nc3 {[%clk 0:02:59]}  Bg7 {[%clk 0:02:51]} 4. e4 {[%clk 0:02:59]}  d6 {[%clk 0:02:49]} 5. d4 {[%clk 0:02:59]}  O-O {[%clk 0:02:46]} 6. Be2 {[%clk 0:02:59]}  e5 {[%clk 0:02:33]} 7. O-O {[%clk 0:02:59]}  Nc6 {[%clk 0:02:28]} 8. d5 {[%clk 0:02:59]}  Ne7 {[%clk 0:02:28]} 9. Ne1 {[%clk 0:02:59]}  Ne8 {[%clk 0:02:22]} 10. Be3 {[%clk 0:02:59]}  f5 {[%clk 0:02:23]} 11. f3 {[%clk 0:02:58]}  f4 {[%clk 0:02:16]} 12. Bf2 {[%clk 0:02:58]}  g5 {[%clk 0:02:13]} 13. c5 {[%clk 0:02:55]}  b6 {[%clk 0:02:05]} 14. b4 {[%clk 0:02:51]}  Nf6 {[%clk 0:01:58]} 15. Rc1 {[%clk 0:02:42]}  Bd7 {[%clk 0:01:55]} 16. a4 {[%clk 0:02:37]}  Ng6 {[%clk 0:01:47]} 17. a5 {[%clk 0:02:35]}  h5 {[%clk 0:01:37]} 18. cxd6 {[%clk 0:02:33]}  cxd6 {[%clk 0:01:33]} 19. Nb5 {[%clk 0:02:30]}  Qe7 {[%clk 0:01:16]} 20. Nc7 {[%clk 0:02:26]}  Rac8 {[%clk 0:01:09]} 21. axb6 {[%clk 0:02:14]}  axb6 {[%clk 0:01:08]} 22. Bxb6 {[%clk 0:02:14]}  g4 {[%clk 0:00:56]} 23. Ne6 {[%clk 0:02:15]}  Bxe6 {[%clk 0:00:48]} 24. dxe6 {[%clk 0:02:15]}  gxf3 {[%clk 0:00:42]} 25. gxf3 {[%clk 0:02:14]}  Qxe6 {[%clk 0:00:36]} 26. Bc7 {[%clk 0:02:12]}  d5 {[%clk 0:00:29]} 27. b5 {[%clk 0:02:09]}  Rxc7 {[%clk 0:00:24]} 28. Rxc7 {[%clk 0:02:07]}  Qb6+ {[%clk 0:00:24]} 29. Kh1 {[%clk 0:02:05]}  Qxc7 {[%clk 0:00:24]} 30. exd5 {[%clk 0:02:05]}  Rd8 {[%clk 0:00:23]} 31. Qb1 {[%clk 0:01:48]}  Ne7 {[%clk 0:00:21]} 32. b6 {[%clk 0:01:48]}  Qb7 {[%clk 0:00:20]} 33. Bc4 {[%clk 0:01:44]}  Nexd5 {[%clk 0:00:19]} 34. Nd3 {[%clk 0:01:44]}  Re8 {[%clk 0:00:14]} 35. Re1 {[%clk 0:01:36]}  Nd7 {[%clk 0:00:13]} 36. Qb5 {[%clk 0:01:31]}  Nxb6 {[%clk 0:00:05]} 37. Qxe8+ {[%clk 0:01:30]}  Kh7 {[%clk 0:00:05]} 38. Qxh5+ {[%clk 0:01:30]}  Bh6 {[%clk 0:00:05]} 39. Nxe5 {[%clk 0:01:27]}  Ne3 {[%clk 0:00:03]} 40. Qg6+ {[%clk 0:01:25]}  Kh8 {[%clk 0:00:03]} 41. Qg8# {[%clk 0:01:26]} 1-0


[Site "https://www.chess.com"]

[Event "Titled Tuesday Blitz May 9 Early 2023"]
[White "Guerra Tulcan, Lenin"]
[Black "Chigaev, Maksim"]
[WhiteFideId "3601382"]
[BlackFideId "4108116"]
[WhiteElo "2368"]
[BlackElo "2558"]
[Result "1/2-1/2"]
[Round "05"]
[TimeControl "180+2"]
[Date "2023.05.09"]
[WhiteClock "0:00:20"]
[BlackClock "0:00:10"]

1. e4 {[%clk 0:03:00]}  e6 {[%clk 0:02:55]} 2. d4 {[%clk 0:02:59]}  d5 {[%clk 0:02:56]} 3. Nd2 {[%clk 0:02:59]}  c5 {[%clk 0:02:56]} 4. exd5 {[%clk 0:02:59]}  Qxd5 {[%clk 0:02:56]} 5. Ngf3 {[%clk 0:03:00]}  cxd4 {[%clk 0:02:57]} 6. Bc4 {[%clk 0:02:59]}  Qd7 {[%clk 0:02:57]} 7. O-O {[%clk 0:02:59]}  Nc6 {[%clk 0:02:57]} 8. Nb3 {[%clk 0:02:59]}  Nf6 {[%clk 0:02:56]} 9. Nbxd4 {[%clk 0:02:58]}  Nxd4 {[%clk 0:02:57]} 10. Qxd4 {[%clk 0:02:58]}  Qxd4 {[%clk 0:02:55]} 11. Nxd4 {[%clk 0:02:59]}  a6 {[%clk 0:02:53]} 12. c3 {[%clk 0:02:58]}  b5 {[%clk 0:02:47]} 13. Bb3 {[%clk 0:02:56]}  Bb7 {[%clk 0:02:47]} 14. a4 {[%clk 0:02:53]}  b4 {[%clk 0:02:35]} 15. a5 {[%clk 0:02:44]}  Bd6 {[%clk 0:01:53]} 16. Ba4+ {[%clk 0:02:40]}  Ke7 {[%clk 0:01:53]} 17. Bc6 {[%clk 0:02:30]}  Bxc6 {[%clk 0:01:46]} 18. Nxc6+ {[%clk 0:02:29]}  Kd7 {[%clk 0:01:47]} 19. Nxb4 {[%clk 0:02:27]}  Bxb4 {[%clk 0:01:47]} 20. cxb4 {[%clk 0:02:28]}  Rab8 {[%clk 0:01:47]} 21. Bd2 {[%clk 0:02:26]}  Nd5 {[%clk 0:01:45]} 22. Bc3 {[%clk 0:02:22]}  f6 {[%clk 0:01:38]} 23. Rfd1 {[%clk 0:02:20]}  Rhc8 {[%clk 0:01:37]} 24. Rac1 {[%clk 0:02:05]}  Rb5 {[%clk 0:01:31]} 25. g3 {[%clk 0:02:01]}  e5 {[%clk 0:01:27]} 26. Rc2 {[%clk 0:01:45]}  Ke6 {[%clk 0:01:23]} 27. Rcd2 {[%clk 0:01:44]}  Rc6 {[%clk 0:01:23]} 28. Kg2 {[%clk 0:01:21]}  g5 {[%clk 0:01:17]} 29. Rd3 {[%clk 0:01:14]}  h5 {[%clk 0:01:15]} 30. Be1 {[%clk 0:00:47]}  g4 {[%clk 0:01:11]} 31. h3 {[%clk 0:00:45]}  Nxb4 {[%clk 0:01:04]} 32. Rd8 {[%clk 0:00:31]}  Nd5 {[%clk 0:00:57]} 33. Re8+ {[%clk 0:00:29]}  Kf5 {[%clk 0:00:50]} 34. Rh8 {[%clk 0:00:29]}  Kg6 {[%clk 0:00:37]} 35. hxg4 {[%clk 0:00:28]}  hxg4 {[%clk 0:00:37]} 36. Rd8 {[%clk 0:00:29]}  Nc7 {[%clk 0:00:23]} 37. R8d6 {[%clk 0:00:29]}  Rxd6 {[%clk 0:00:19]} 38. Rxd6 {[%clk 0:00:30]}  Rxb2 {[%clk 0:00:20]} 39. Rc6 {[%clk 0:00:30]}  Nd5 {[%clk 0:00:08]} 40. Rxa6 {[%clk 0:00:30]}  Re2 {[%clk 0:00:09]} 41. Kf1 {[%clk 0:00:26]}  Ra2 {[%clk 0:00:09]} 42. Rd6 {[%clk 0:00:26]}  Ne7 {[%clk 0:00:07]} 43. Bc3 {[%clk 0:00:26]}  Kf5 {[%clk 0:00:07]} 44. a6 {[%clk 0:00:26]}  Nc8 {[%clk 0:00:05]} 45. Rc6 {[%clk 0:00:25]}  Ne7 {[%clk 0:00:05]} 46. Rd6 {[%clk 0:00:24]}  Ng6 {[%clk 0:00:04]} 47. Bd2 {[%clk 0:00:23]}  Nf8 {[%clk 0:00:04]} 48. Be3 {[%clk 0:00:23]}  Ne6 {[%clk 0:00:05]} 49. a7 {[%clk 0:00:22]}  Nd4 {[%clk 0:00:06]} 50. Bxd4 {[%clk 0:00:22]}  exd4 {[%clk 0:00:07]} 51. Rxd4 {[%clk 0:00:22]}  Rxa7 {[%clk 0:00:07]} 52. Rf4+ {[%clk 0:00:23]}  Kg5 {[%clk 0:00:07]} 53. Kg2 {[%clk 0:00:23]}  f5 {[%clk 0:00:08]} 54. Rd4 {[%clk 0:00:23]}  Ra2 {[%clk 0:00:09]} 55. Rf4 {[%clk 0:00:23]}  Re2 {[%clk 0:00:09]} 56. Rc4 {[%clk 0:00:23]}  Re1 {[%clk 0:00:10]} 57. Rf4 {[%clk 0:00:23]}  Re4 {[%clk 0:00:07]} 58. Rxe4 {[%clk 0:00:22]}  fxe4 {[%clk 0:00:08]} 59. Kf1 {[%clk 0:00:23]}  Kf6 {[%clk 0:00:09]} 60. Ke2 {[%clk 0:00:23]}  Ke6 {[%clk 0:00:09]} 61. Ke1 {[%clk 0:00:21]}  Kd5 {[%clk 0:00:09]} 62. Ke2 {[%clk 0:00:20]}  Ke6 {[%clk 0:00:10]} 63. Ke1 {[%clk 0:00:20]}  Ke7 {[%clk 0:00:09]} 64. Kd1 {[%clk 0:00:19]}  Kd7 {[%clk 0:00:09]} 65. Ke1 {[%clk 0:00:20]}  Ke7 {[%clk 0:00:09]} 66. Ke2 {[%clk 0:00:20]}  Ke6 {[%clk 0:00:10]} 1/2-1/2


[Site "https://www.chess.com"]

[Event "Titled Tuesday Blitz May 9 Early 2023"]
[White "Remizov, Yaroslav"]
[Black "Yaniuk, Volodymyr"]
[WhiteFideId "34134015"]
[BlackFideId "14133083"]
[WhiteElo "2400"]
[BlackElo "2141"]
[Result "1-0"]
[Round "05"]
[TimeControl "180+2"]
[Date "2023.05.09"]
[WhiteClock "0:01:04"]
[BlackClock "0:00:06"]

1. e4 {[%clk 0:03:00]}  e5 {[%clk 0:02:59]} 2. Nf3 {[%clk 0:02:59]}  Nc6 {[%clk 0:03:00]} 3. Nc3 {[%clk 0:03:00]}  Nf6 {[%clk 0:03:00]} 4. Be2 {[%clk 0:03:01]}  Bb4 {[%clk 0:02:57]} 5. Nd5 {[%clk 0:02:59]}  Be7 {[%clk 0:02:56]} 6. d3 {[%clk 0:02:59]}  d6 {[%clk 0:02:54]} 7. Nxe7 {[%clk 0:02:58]}  Qxe7 {[%clk 0:02:55]} 8. Bg5 {[%clk 0:02:56]}  h6 {[%clk 0:02:52]} 9. Bh4 {[%clk 0:02:55]}  Bg4 {[%clk 0:02:48]} 10. O-O {[%clk 0:02:39]}  Bxf3 {[%clk 0:02:45]} 11. Bxf3 {[%clk 0:02:40]}  Nd4 {[%clk 0:02:45]} 12. c3 {[%clk 0:02:34]}  Ne6 {[%clk 0:02:41]} 13. d4 {[%clk 0:02:31]}  g5 {[%clk 0:02:37]} 14. Bg3 {[%clk 0:02:31]}  Nf4 {[%clk 0:02:36]} 15. Qb3 {[%clk 0:02:25]}  c6 {[%clk 0:02:34]} 16. Rfe1 {[%clk 0:02:23]}  O-O {[%clk 0:02:33]} 17. Rad1 {[%clk 0:02:22]}  Rfd8 {[%clk 0:02:30]} 18. h3 {[%clk 0:02:21]}  Kg7 {[%clk 0:02:29]} 19. a4 {[%clk 0:02:13]}  b6 {[%clk 0:02:24]} 20. a5 {[%clk 0:02:08]}  b5 {[%clk 0:02:23]} 21. d5 {[%clk 0:02:05]}  cxd5 {[%clk 0:02:21]} 22. exd5 {[%clk 0:02:06]}  a6 {[%clk 0:02:19]} 23. Bxf4 {[%clk 0:02:04]}  gxf4 {[%clk 0:02:20]} 24. Kh2 {[%clk 0:02:02]}  Rac8 {[%clk 0:02:16]} 25. Qc2 {[%clk 0:01:59]}  Qc7 {[%clk 0:02:14]} 26. Rg1 {[%clk 0:01:59]}  b4 {[%clk 0:01:38]} 27. g3 {[%clk 0:01:54]}  fxg3+ {[%clk 0:01:38]} 28. Rxg3+ {[%clk 0:01:53]}  Kf8 {[%clk 0:01:37]} 29. Qf5 {[%clk 0:01:53]}  Ke7 {[%clk 0:01:37]} 30. Rg7 {[%clk 0:01:51]}  Qd7 {[%clk 0:01:33]} 31. Qg6 {[%clk 0:01:43]}  Rf8 {[%clk 0:01:25]} 32. cxb4 {[%clk 0:01:34]}  Rc4 {[%clk 0:01:20]} 33. Rd3 {[%clk 0:01:24]}  Rxb4 {[%clk 0:01:17]} 34. b3 {[%clk 0:01:19]}  e4 {[%clk 0:01:03]} 35. Re3 {[%clk 0:01:18]}  Nxd5 {[%clk 0:00:28]} 36. Rxe4+ {[%clk 0:01:18]}  Rxe4 {[%clk 0:00:28]} 37. Qxe4+ {[%clk 0:01:17]}  Qe6 {[%clk 0:00:28]} 38. Qxd5 {[%clk 0:01:17]}  Qxd5 {[%clk 0:00:25]} 39. Bxd5 {[%clk 0:01:17]}  Kf6 {[%clk 0:00:26]} 40. Rg3 {[%clk 0:01:12]}  Ke5 {[%clk 0:00:26]} 41. Rd3 {[%clk 0:01:12]}  Rb8 {[%clk 0:00:21]} 42. Bxf7 {[%clk 0:01:12]}  Rb5 {[%clk 0:00:22]} 43. Bc4 {[%clk 0:01:06]}  Rxa5 {[%clk 0:00:21]} 44. Re3+ {[%clk 0:01:07]}  Kf4 {[%clk 0:00:20]} 45. Re6 {[%clk 0:01:07]}  d5 {[%clk 0:00:18]} 46. Rxa6 {[%clk 0:01:07]}  Rc5 {[%clk 0:00:16]} 47. Bf1 {[%clk 0:01:07]}  Rc2 {[%clk 0:00:16]} 48. Kg2 {[%clk 0:01:07]}  d4 {[%clk 0:00:16]} 49. Rxh6 {[%clk 0:01:07]}  Rb2 {[%clk 0:00:16]} 50. Rd6 {[%clk 0:01:06]}  Ke5 {[%clk 0:00:16]} 51. Rd8 {[%clk 0:01:07]}  Rxb3 {[%clk 0:00:16]} 52. h4 {[%clk 0:01:07]}  Rb6 {[%clk 0:00:13]} 53. h5 {[%clk 0:01:07]}  Rf6 {[%clk 0:00:12]} 54. Bd3 {[%clk 0:01:06]}  Rf4 {[%clk 0:00:11]} 55. Kg3 {[%clk 0:01:06]}  Rf6 {[%clk 0:00:09]} 56. f4+ {[%clk 0:01:06]}  Ke6 {[%clk 0:00:07]} 57. Rxd4 {[%clk 0:01:06]}  Kf7 {[%clk 0:00:07]} 58. Kg4 {[%clk 0:01:06]}  Kg7 {[%clk 0:00:08]} 59. Kg5 {[%clk 0:01:06]}  Rf7 {[%clk 0:00:08]} 60. f5 {[%clk 0:01:06]}  Ra7 {[%clk 0:00:08]} 61. h6+ {[%clk 0:01:05]}  Kf7 {[%clk 0:00:07]} 62. Bc4+ {[%clk 0:01:05]}  Ke7 {[%clk 0:00:07]} 63. h7 {[%clk 0:01:05]}  Ra8 {[%clk 0:00:07]} 64. Kg6 {[%clk 0:01:06]}  Ra6+ {[%clk 0:00:06]} 65. Be6 {[%clk 0:01:04]} 1-0


[Site "https://www.chess.com"]